Cogmind - Beta 14 --- EXPLORER MODE // 2024.08.18 @ 14:18:48 Player: Analote Result: Destroyed by ET-CHY(R) with Subdweller Beam Cannon Performance ------------- Evolutions (0) 0 Regions Visited (2) 400 Robots Destroyed (18) 90 Value Destroyed (483) 483 Prototype IDs (0) 0 Alien Tech Used (0) 0 Bonus (0) 0 TOTAL SCORE: 973 Bonus ------- None Cogmind --------- Core Integrity 0/250 Matter 285/300 Energy 100/100 System Corruption 1% Temperature Cool (9) Movement Core (200) Ox3 Location -10/Subcaves Parts ------- > --- POWER (1) -------- (None) > --- PROPULSION (2) --- (None) > --- UTILITY (3) ------ Medium Storage Unit > --- WEAPON (2) ------- (None) > --- INVENTORY (10) --- Heat Sink EM Shotgun Peak State ------------ > --- POWER ------------ Light Ion Engine > --- PROPULSION ------- Aluminum Leg > --- UTILITY ---------- Medium Storage Unit Scrap Shield > --- WEAPON ----------- Particle Gun Subdweller Machine Gun > --- INVENTORY -------- Heat Sink EM Shotgun [Rating: 11] Favorites ----------- Power Light Ion Engine Engine Light Ion Engine Propulsion Aluminum Leg Leg Aluminum Leg Utility Medium Storage Unit Device Heat Sink Storage Medium Storage Unit Processor Targeting Computer Protection Light Armor Plating Weapon EM Pulse Gun Energy Gun EM Pulse Gun Ballistic Gun Subdweller Machine Gun Build | -11 -10 -10 ------- Run | Yrd Mat Sub Slots Evolved 1 | . 1 . Power . | . . . Propulsion . | . . . Utility 1 | . 1 . Weapon . | . . . Parts Attached 15 | 7 1 7 Power 2 | 1 . 1 Engine 2 | 1 . 1 Core . | . . . Reactor . | . . . Propulsion 2 | 2 . . Treads . | . . . Leg 2 | 2 . . Wheel . | . . . Hover . | . . . Flight . | . . . Utility 5 | 2 1 2 Device 1 | . . 1 Storage 1 | . 1 . Processor 1 | 1 . . Hackware . | . . . Protection 2 | 1 . 1 Artifact . | . . . Weapon 6 | 2 . 4 Energy Gun 5 | 2 . 3 Energy Cannon . | . . . Ballistic Gun 1 | . . 1 Ballistic Cannon . | . . . Launcher . | . . . Special Weapon . | . . . Impact Weapon . | . . . Slashing Weapon . | . . . Piercing Weapon . | . . . Special Melee Weapon . | . . . Unidentified Prototypes . | . . . Corrupted Parts 1 | . . 1 System Corruption 1 | . . 1 Parts Lost 11 | . . 11 Power 2 | . . 2 Propulsion 2 | . . 2 Utility 2 | . . 2 Weapon 5 | . . 5 Highest Loss Streak 5 | . . 5 To Critical Strikes 1 | . . 1 Average Slot Usage (%) 91 | . 100 86 Engine 11 | . 12 11 Leg 18 | . 25 13 Device 4 | . . 7 Storage 12 | . 12 12 Processor 11 | . 12 10 Protection 6 | . 12 3 Energy Gun 18 | . 25 14 Ballistic Gun 5 | . . 9 Peak Build Rating 11 | 7 9 11 Average Rating 8 | 4 8 9 On Entrance 5 | . 7 9 Naked Turns . | . . . Heaviest Build 38 | 10 20 38 Greatest Support 20 | 20 20 20 Greatest Overweight (x) 3 | 1 . 3 Average Overweight (x) . | . . 1 Largest Inventory Capacity 10 | 5 10 10 Average Capacity 9 | 5 10 10 Most Carried 6 | 2 6 6 Average Carried 3 | . 3 3 Final Capacity 10 | 5 10 10 Final Carried 6 | 1 6 2 Class Distribution -------------------- 100% | Hacker-Mutant Dominant Class ---------------- Hacker-Mutant | -10/Materials Hacker-Mutant | -10/Subcaves Resources | -11 -10 -10 ----------- Run | Yrd Mat Sub Matter Collected 397 | 93 237 67 Remotely . | . . . Salvage Created 589 | . 393 196 Parts 40 | . 31 9 Haulers Intercepted . | . . . Recyclers Shooed . | . . . Parts Field Recycled . | . . . Retrieved Matter . | . . . Parts Self-Destructed . | . . . Prevented . | . . . Kills | -11 -10 -10 ------- Run | Yrd Mat Sub Combat Hostiles Destroyed 14 | . 9 5 Guns 12 | . 7 5 AOE 2 | . 2 . Classes Destroyed 5 | . 4 1 Worker 1 | . 1 . Watcher 3 | . 3 . Swarmer 4 | . 4 . Grunt 7 | . 5 2 Subdweller 3 | . . 3 Best Kill Streak 4 | . 4 2 Combat Bots Only 4 | . 4 2 Max Kills in Single Turn 2 | . 2 1 Gunslinging . | . . . Exploded 1 | . 1 . Melee . | . . . Uniques/NPCs Destroyed . | . . . Combat | -11 -10 -10 -------- Run | Yrd Mat Sub Hostile Shots Fired 141 | . 37 104 Missed 44 | . 16 28 Damage Taken 1189 | . 186 1003 Core 262 | . 24 238 Absorbed by Shields . | . . . Ignored by Resistances 716 | . 118 598 Core Remaining (%) 100 | 100 . . Volleys Fired 71 | . 25 46 Largest 2 | . 2 2 Hottest 95 | . 80 95 Shots Fired 130 | . 50 80 Gun 130 | . 50 80 Cannon . | . . . Launcher . | . . . Special . | . . . Kinetic 21 | . . 21 Thermal 27 | . . 27 Explosive . | . . . Electromagnetic 82 | . 50 32 Robot Hit Streak 32 | . 10 32 Robot Miss Streak 2 | . 2 1 Penetration Max . | . . . Secondary Targets 1 | . 1 . Max Gunslinging Chain 1 | . 1 . Shots Hit Robots 100 | . 35 65 Core Hits 27 | . 15 12 Critical Kills . | . . . Critical Parts Destroyed . | . . . Critical Strikes . | . . . Melee Attacks . | . . . Impact . | . . . Slashing . | . . . Piercing . | . . . Sneak Attacks . | . . . Combat Hostiles . | . . . Follow-up Attacks . | . . . Damage Inflicted 1398 | . 761 637 Guns 1134 | . 497 637 Cannons . | . . . Explosions 264 | . 264 . Melee . | . . . Ramming . | . . . Kinetic 280 | . . 280 Thermal 560 | . 264 296 Explosive . | . . . Electromagnetic 558 | . 497 61 Impact . | . . . Slashing . | . . . Piercing . | . . . Highest Corruption 1 | . . 1 Average Corruption 1 | . . 1 Corruption Purged . | . . . Corruption Blocked . | . . . Effects 8 | . . 8 Message Errors 2 | . . 2 Energy Discharges 2 | . . 2 Parts Fused 1 | . . 1 Data Loss (minor) 2 | . . 2 Alerts 1 | . . 1 Overload Shots . | . . . Overflow Damage 18 | . 18 . Projectiles . | . . . Explosions 18 | . 18 . Melee . | . . . Knockbacks . | . . . Impact . | . . . Kinetic . | . . . Secondary . | . . . Self-Inflicted Damage 40 | . 40 . Shots 2 | . 2 . Rammed . | . . . Targets Rammed . | . . . Kicked . | . . . Crushed . | . . . Highest Temperature 357 | . 357 6 Average Temperature 132 | . 133 6 Received Heat Transfer 387 | . 120 267 Effects 4 | . 4 . Energy Bleed 1 | . 1 . Matter Decay 1 | . 1 . Damage (minor) 2 | . 2 . Siege Activations . | . . . Robots Corrupted . | . . . Combat Hostiles . | . . . Parts Fried 1 | . 1 . Impact Corruptions . | . . . Robots Melted . | . . . Combat Hostiles . | . . . Parts Melted 1 | . . 1 Heat Transferred 1003 | . 300 703 Parts Sabotaged . | . . . Parts Stolen . | . . . Parts Stripped . | . . . Power Chain Reactions 4 | . 4 . Alert | -11 -10 -10 ------- Run | Yrd Mat Sub Peak Influence 208 | . 208 . Initial . | . . . Average 58 | . 61 . Maximum Alert Level 1 | . 1 . Low Security (%) 96 | 100 96 . Level 1 3 | . 3 . Level 2 . | . . . Level 3 . | . . . Level 4 . | . . . Level 5 . | . . . High Security . | . . . Max Security . | . . . Squads Dispatched 1 | . 1 . Investigation 1 | . 1 . Extermination . | . . . Reinforcement . | . . . Assault . | . . . Garrison . | . . . Intercept . | . . . Searches Triggered . | . . . Construction Impeded . | . . . Haulers Reinforced . | . . . Active Scanning Responses . | . . . Cargo Convoy Interrupts . | . . . Stealth | -11 -10 -10 --------- Run | Yrd Mat Sub Distress Signals 2 | . 2 . Communications Jammed . | . . . Distress Signals . | . . . Times Spotted 20 | . 12 8 Peak Tracking Total 4 | . 4 3 Tactical Retreats . | . . . Traps | -11 -10 -10 ------- Run | Yrd Mat Sub Traps Triggered 1 | . 1 . Indirectly . | . . . Trap Hack Attempts . | . . . Triggered . | . . . Disarmed . | . . . Reprogrammed . | . . . Reused . | . . . Traps Extracted . | . . . Installed . | . . . Triggered . | . . . Machines | -11 -10 -10 ---------- Run | Yrd Mat Sub Machines Disabled 1 | . 1 . Max in Single Turn 1 | . 1 . Machines Repaired . | . . . Machines Dismantled . | . . . Machines Sabotaged . | . . . Overloaded Fab Kills . | . . . Hacking | -11 -10 -10 --------- Run | Yrd Mat Sub Machines Accessed 5 | . 5 . Terminals 5 | . 5 . Fabricators . | . . . Repair Stations . | . . . Recycling Units . | . . . Scanalyzers . | . . . Garrison Access . | . . . Total Hacks 12 | . 12 . Successful 7 | . 7 . Failed 5 | . 5 . Catastrophic 1 | . 1 . Database Lockouts . | . . . Manual 7 | . 7 . Terminals 12 | . 12 . Fabricators . | . . . Repair Stations . | . . . Recycling Units . | . . . Scanalyzers . | . . . Garrison Access . | . . . Terminal Hacks 5 | . 5 . Record 1 | . 1 . Alert Level 1 | . 1 . Locate Traps 2 | . 2 . Zone Layout 1 | . 1 . Fabricator Hacks . | . . . Repair Station Hacks . | . . . Recycling Unit Hacks . | . . . Scanalyzer . | . . . Garrison Access Hacks . | . . . Unauthorized Hacks 2 | . 2 . Terminals 2 | . 2 . Botnet 2 | . 2 . Fabricators . | . . . Repair Stations . | . . . Recycling Units . | . . . Scanalyzers . | . . . Garrison Access . | . . . Data Cores Recovered . | . . . Used . | . . . Hacking Detections 4 | . 4 . Full Trace Events 2 | . 2 . Feedback Events . | . . . Feedback Blocked . | . . . Robot Schematics Acquired . | . . . Robots Built . | . . . Authchips . | . . . Time . | . . . Total Robot Build Rating . | . . . Part Schematics Acquired . | . . . Parts Built . | . . . Authchips . | . . . Time . | . . . Total Part Build Rating . | . . . Parts Repaired . | . . . Time . | . . . Parts Recycled . | . . . Recycled Matter . | . . . Retrieved Matter . | . . . Retrieved Components . | . . . Parts Scanalyzed . | . . . Part Schematics Acquired . | . . . Parts Damaged . | . . . Bothacking | -11 -10 -10 ------------ Run | Yrd Mat Sub Used RIF Installer . | . . . Robots Hacked . | . . . Non-combat . | . . . Combat . | . . . Robot Hacks Applied . | . . . Relay Couplers Released . | . . . Fabnet Peak Effective % . | . . . Robots Rewired . | . . . Allies Hacked . | . . . Hacks Repelled . | . . . Allies | -11 -10 -10 -------- Run | Yrd Mat Sub Total Allies . | . . . Largest Group . | . . . Highest-Rated Group . | . . . Highest-Rated Ally . | . . . Total Orders . | . . . Ally Attacks . | . . . Total Damage . | . . . Kills . | . . . Allies Corrupted . | . . . Allies Melted . | . . . Intel | -11 -10 -10 ------- Run | Yrd Mat Sub Robot Analysis Total . | . . . Derelict Logs Recovered 1 | . . 1 Drone Launches . | . . . Drone Recoveries . | . . . Exploration | -11 -10 -10 ------------- Run | Yrd Mat Sub Turns Passed 2446 | 56 972 1418 Spaces Moved 1180 | 38 608 534 Core 13 | 11 . 2 Treads . | . . . Legs 1167 | 27 608 532 Wheels . | . . . Hover . | . . . Flight . | . . . Fastest Speed 50 | 50 120 120 Average Speed 173 | 110 120 238 Slowest Speed 330 | 120 120 330 Overloaded Moves . | . . . Propulsion Burnouts . | . . . Robots Hopped . | . . . Cave-ins Triggered . | . . . Exploration Rate (%) 41 | 3 97 24 Regions Visited 2 Branch Regions 1 Pre-discovered Areas 1 | . . 1 Known Exits Taken 2 | 1 1 . Unknown Exits Taken . | . . . Scrap Searched 4 | . . 4 Spaces Dug . | . . . Terrain Destroyed 15 | . 15 . Melee . | . . . Projectile . | . . . AOE 15 | . 15 . Terrain Rammed . | . . . Walls Destroyed . | . . . Machines Disabled . | . . . Actions | -11 -10 -10 --------- Run | Yrd Mat Sub Total 1452 | 52 800 600 Wait 163 | . 161 2 Move 1178 | 37 607 534 Hop . | . . . Pick Up 19 | 8 6 5 Fast Attach . | . . . Attach 14 | 7 1 6 Detach 2 | . . 2 Swap 1 | . . 1 Drop 4 | . . 4 Fire 71 | . 25 46 Melee . | . . . Ram . | . . . Kick . | . . . Crush . | . . . Escape Stasis . | . . . Rewire . | . . . Trap . | . . . Miscellaneous . | . . . Route ------- -11/Scrapyard -10/Materials (discovered 5 exits: *Mat x3 / *Min / *Sub) -10/Subcaves History --------- Turn | Location | Event 10 | -11/Scrapyard | Identified exit to Materials 10 | -11/Scrapyard | Discovered exit to Materials (range 15) 57 | -11/Scrapyard | Entered Materials 57 | -10/Materials | Evolved 1 slot: Utility x1 235 | -10/Materials | Identified exit to Materials 235 | -10/Materials | Discovered exit to Materials (range 16) 306 | -10/Materials | Build established: Hacker-Mutant 484 | -10/Materials | Identified exit to Mines 484 | -10/Materials | Discovered exit to Mines (range 19) 544 | -10/Materials | Discovered exit to Materials (range 12) 789 | -10/Materials | Discovered exit to Materials (range 3) 1004 | -10/Materials | Identified exit to Subcaves 1004 | -10/Materials | Discovered exit to Subcaves (range 7) 1029 | -10/Materials | Entered Subcaves 1044 | -10/Subcaves | Learned location of Zion (-7) 1247 | -10/Subcaves | Disturbed a concealed Subdweller 1333 | -10/Subcaves | Lost 3 parts (1n1u1w) 1339 | -10/Subcaves | Core integrity fell below 50% 2050 | -10/Subcaves | Shifting Twisted Machinery released Battle Rifle 2066 | -10/Subcaves | Shifting Twisted Machinery released Battle Rifle 2251 | -10/Subcaves | Shifting Twisted Machinery released Scrap Shield 2277 | -10/Subcaves | Shifting Twisted Machinery released Sub. Power Source 2409 | -10/Subcaves | A Subdweller sparked back to life 2409 | -10/Subcaves | A Subdweller sparked back to life 2409 | -10/Subcaves | A Subdweller sparked back to life 2445 | -10/Subcaves | Core integrity fell below 20% 2447 | -10/Subcaves | Destroyed by ET-CHY(R) with Subdweller Beam Cannon Last Messages --------------- 02296_ Dropped EM Shotgun. 02297_ Dropped Battle Rifle. 02298_ Discarded Targeting Computer. 02302_ Acquired Scrap Shield. 02409_ R9-A3Q(R) creaks and sparks as it begins to move. 02409_ U2-JJY(R) creaks and sparks as it begins to move. 02409_ ET-CHY(R) creaks and sparks as it begins to move. 02412_ Critical hit (Destroy). 02416_ Aluminum Leg destroyed. 02424_ ET-CHY(R) affixes Scrap Shield Fragment to Scrap Shield. 02430_ Scrap Shield destroyed. 02437_ Particle Gun destroyed. 02441_ Lgt. Ion Engine destroyed. 02442_ Sub. Machine Gun shoots sparks and powers down. 02443_ Broken Sub. Machine Gun destroyed. Map ----- +----------------------------------------------------+ | ?????????????????????????????????????????????????? | | ?????????????????????????????????????????????????? | | ?????????????????????????????????????????????????? | | ?????????????????????????????????????????????????? | | ?????????????????????????????????????????????????? | | ?????????????????????????????????????????????????? | | ?????????????????????????????????????????????????? | | ?????????????????????????????????????????????????? | | ?????????????????????????????????????????????????? | | ?????????????????????????????????????????????????? | | ??????????????####?????????####???###????????????? | | ????????????### ##???????## ##### #????????????? | | ????????????# #??????## ##???????????? | | ???????????## ###????# #???????????? | | ???????##### ####?# ##???????? ?? | | ????#### ### ######??"#?? | | ???## ### ## ### "" ###"### | | ???# ########### [" """ | | ???# #????????## ## ###""" ["""" | | ???## #???#####?## ### #######[ """" | | ????### ####???# ##?## ##?# "##??#" "" "" | | ??????# ####????# ### #### "" ##?# """ "" | | ??????# ###### ## ## ### ""*"" | | ??????# ## # "## "" "" | | ?????## " ####""### | | ?????# @ "##???###?? | | ?????## R ;## ##????????? | | ??????## ### % R ### ######?????????? | | ??###### ## R ####??????????????? | | ??# ## ## % ### #?????????????????? | | ??# #####< << ## #?#####?????????????????? | | ??## ##????# < # ##???????###????????????? | | ???# ##?????# #?###?### ##???????????? | | ???# #??????# ### ### #???????????? | | ???### ##??##### ## # ###???????????? | | ?????##???## ####### ##?????????????? | | ??????????# % #?????# ##??????????????? | | ??????????# & ##????# ##???????????????? | | ??????????## ######## #????????????????? | | ???######### ## ###### #????????????????? | | ???# #### ##????????????????? | | ????# #"###?????????????????? | | ????#### "#???????????????????? | | ???????## ## ##??##??????????????? | | ???????## ####" ##" ##?????????????? | | ???????# ## ###??## " "" #?????????????? | | ?????### ### #????# """""" #????????????? | | ##?### ## # ###### """""#????????????? | | %### ### # ### [#????????????? | | [#&#" ### ## #??# #????????????? | +----------------------------------------------------+ Best States ------------- Heat Dissipation 35 Energy Generation 10 Energy Capacity 125 Matter Stores 300 Matter Capacity 300 Sight Range 16 Terrain Scan Density 10 Armor Coverage 800 Resistance: KI 35 Resistance: TH 35 Resistance: EX 35 Resistance: EM 35 Resistance: I 35 Resistance: S 35 Resistance: P 35 Evasion (%) 55 Targeting Accuracy 5 Offensive Hacking 20 Item Schematics ----------------- None Robot Schematics ------------------ None Fabricated ------------ Nothing Alien Tech Used ----------------- None Achievements -------------- None Challenges ------------ None Game ------ Seed WeaponsXenonFalx Manual? 0 Play Time 00:13:12 Cumulative 101.9 hours Start 2024.08.18 @ 14:09:20 End 2024.08.18 @ 14:18:48 Sessions 1 Manual Loads 0 Difficulty Explorer Special Mode None Game No. 128 Rogue 7 Adventurer 1 Explorer 120 Win Type - Total 3 Types 2/0/1/0/0/0/0/0/0 Lore% 44 Gallery% 62 Achievement% 67 Wizard Run 0 Options --------- Layout 1 ASCII 0 Keyboard 1 Movement Numpad Keybinds 0 Fullscreen 2 Font 24/Smallcaps Map View 50x35 Zoom Use 0% Tactical HUD 1 Map Filters NONE Filters NONE Steam 1 RUN: 40950e49-8ecc-4a74-9e42-feb823e2e32e